bitfinex-derivatives/quotes_SOLF0:USTF0_20250630
["timestamp","ask_amount","ask_price","bid_price","bid_amount"]
[1751266360796,4.67308798,150.56,150.49,2.3568]
[1751266360990,4.67308798,150.56,150.5,56.8229]
[1751266361391,5.3139,150.51,150.5,52.14]
[1751266362092,4.67308798,150.58,150.5,52.14]
[1751266362593,5.3128,150.55,150.51,5.3136]
[1751266362788,4.67308798,150.57,150.51,5.3136]
[1751266363193,5.3127,150.55,150.51,5.3136]
[1751266363598,4.67308798,150.57,150.52,5.3134]
[1751266363895,5.3123,150.56,150.52,5.3134]
[1751266364297,5.3123,150.56,150.53,5.3131]
[1751266364498,4.67308798,150.59,150.51,2.1691]
[1751266365297,4.67308798,150.59,150.52,5.3135]
[1751266365797,4.67308798,150.57,150.52,5.3135]
[1751266365998,5.3124,150.56,150.52,5.3135]
[1751266366397,5.3126,150.55,150.52,5.3135]
[1751266366599,5.3126,150.55,150.51,7.4829]
[1751266366993,5.3126,150.55,150.51,2.1691]
[1751266366994,4.67308798,150.55,150.51,2.1691]
[1751266367198,806.14,150.62,150.51,2.1691]
[1751266367500,4.67308798,150.55,150.51,2.1691]
[1751266367688,5.3126,150.55,150.51,7.483]
[1751266367896,4.67308798,150.57,150.51,2.1691]
[1751266368096,4.67308798,150.59,150.52,5.3133]
[1751266368299,4.67308798,150.59,150.51,2.1691]
[1751266368495,4.67308798,150.59,150.51,4.3877]
[1751266368798,5.3122,150.56,150.53,5.313]
[1751266368988,4.67308798,150.59,150.53,5.313]
[1751266369195,5.3121,150.56,150.53,5.313]
[1751266369498,4.67308798,150.59,150.53,5.313]
[1751266369800,5.312,150.57,150.53,5.313]
[1751266369999,3.10538311,150.58,150.52,5.3134]
[1751266370299,5.3124,150.56,150.52,5.3134]
[1751266370500,3.10538311,150.58,150.51,9.7013]
[1751266370994,3.10538311,150.56,150.51,4.3877]
[1751266371394,3.10538311,150.54,150.48,50.38]
[1751266371595,3.10538311,150.54,150.48,55.6947]
[1751266371793,5.3144,150.5,150.48,50.38]
[1751266372602,5.3146,150.49,150.48,50.38]
[1751266372801,4.66140181,150.5,150.45,50.38]
[1751266373103,5.3153,150.47,150.45,50.38]
[1751266373303,4.66140181,150.5,150.45,50.38]
[1751266373604,5.3151,150.48,150.45,50.38]
[1751266374003,4.66140181,150.5,150.45,50.38]
[1751266374205,5.3153,150.47,150.45,50.38]
[1751266374398,4.66140181,150.5,150.45,50.38]
[1751266374602,4.66140181,150.5,150.45,55.6959]
[1751266374803,5.3152,150.48,150.45,50.38]
[1751266378201,5.3153,150.47,150.45,50.38]
[1751266379504,4.67556078,150.46,150.45,50.38]
[1751266380801,4.67556078,150.46,150.41,48.7]
[1751266381009,4.67556078,150.45,150.4,2.1611]
[1751266381309,4.67556078,150.44,150.4,2.1611]
[1751266381608,4.67556078,150.43,150.41,5.3172]
[1751266381811,4.66140181,150.46,150.4,2.1611]
[1751266381812,4.67556078,150.42,150.4,2.1611]
[1751266382004,4.67556078,150.41,150.4,2.1611]
[1751266383610,4.67556078,150.41,150.4,7.4789]
[1751266384918,4.67556078,150.41,150.4,2.1611]
[1751266385619,4.67556078,150.41,150.4,7.4789]
[1751266389028,4.66140181,150.49,150.4,6.82250181]
[1751266389325,5.3152,150.48,150.4,6.82250181]
[1751266389526,4.66140181,150.49,150.45,5.3157]
[1751266389729,9.97620181,150.49,150.45,5.3157]
[1751266389922,9.97620181,150.49,150.43,48.7]
[1751266389923,5.3148,150.49,150.43,48.7]
[1751266390128,5.3148,150.49,150.45,5.3157]
[1751266390331,4.66140181,150.51,150.45,5.3157]
[1751266390522,4.66140181,150.51,150.46,5.3155]
[1751266391029,5.3147,150.49,150.46,5.3155]
[1751266391528,5.3147,150.49,150.45,5.3159]
[1751266392423,5.3143,150.5,150.46,5.3156]
[1751266393027,5.3143,150.5,150.47,5.3153]
[1751266393933,5.3143,150.5,150.43,48.7]
[1751266393934,3.1085476,150.51,150.43,48.7]
[1751266394128,3.1085476,150.49,150.43,48.7]
[1751266394630,3.1085476,150.49,150.45,5.316]
[1751266395435,8.4232476,150.49,150.45,5.316]
[1751266395631,61.91036911,150.56,150.46,5.3156]
[1751266395937,5.3145,150.5,150.46,5.3156]
[1751266396334,5.3147,150.49,150.46,5.3156]
[1751266397132,5.3144,150.5,150.47,5.3153]
[1751266398337,5.3144,150.5,150.46,5.3155]
[1751266398835,8.4225476,150.51,150.47,5.3152]
[1751266401734,3.1085476,150.54,150.46,2.3681]
[1751266401934,3.1085476,150.54,150.46,6.921]
[1751266402331,5.3137,150.52,150.46,6.921]
[1751266402834,5.3137,150.52,150.48,5.3147]
[1751266405241,5.314,150.51,150.48,5.3147]
[1751266407237,5.314,150.51,150.46,10.0295476]
[1751266408638,5.314,150.51,150.48,5.3149]
[1751266410435,5.3145,150.5,150.47,5.3153]
[1751266411141,5.314,150.51,150.48,5.3149]
[1751266411737,5.3136,150.52,150.49,5.3145]
[1751266412233,3.1085476,150.55,150.48,46.92]
[1751266412432,3.1085476,150.55,150.5,5.3142]
[1751266412939,5.3129,150.54,150.51,5.3139]
[1751266415138,3.1085476,150.53,150.48,46.92]
[1751266416737,3.1085476,150.53,150.48,52.2347]
[1751266417144,5.3138,150.52,150.49,5.3145]
[1751266417643,8.4220476,150.53,150.49,5.3145]
[1751266417839,3.1085476,150.53,150.49,5.3145]
[1751266418744,3.1085476,150.53,150.5,5.3142]
[1751266419141,3.1085476,150.54,150.5,5.3142]
[1751266419842,5.3133,150.53,150.5,5.3142]
[1751266420541,5.3133,150.53,150.49,5.3145]
[1751266420948,5.3133,150.53,150.5,5.3141]
[1751266421347,5.3136,150.52,150.48,46.92]
[1751266421546,3.1085476,150.54,150.49,5.3144]
[1751266422157,5.3133,150.53,150.5,5.3142]
[1751266423753,3.1085476,150.54,150.48,46.92]
[1751266424050,3.1085476,150.51,150.48,46.92]
[1751266424250,3.1085476,150.49,150.43,6.14582595]
[1751266424446,4.0872,150.55,150.43,6.14582595]
[1751266424447,3.1085476,150.47,150.43,45.24]
[1751266424642,4.0872,150.55,150.41,2.292]
[1751266424643,3.1085476,150.45,150.41,2.292]
[1751266424843,5.3166,150.44,150.41,2.292]
[1751266425248,5.3168,150.43,150.41,2.292]
[1751266425749,3.1085476,150.45,150.41,2.292]
[1751266425952,5.3166,150.44,150.41,2.292]
[1751266426650,8.4251476,150.44,150.41,2.292]
[1751266426849,5.3167,150.43,150.41,2.292]
[1751266427547,8.4250476,150.44,150.41,2.292]
[1751266427951,3.1085476,150.44,150.42,3.23486925]
[1751266428148,3.1085476,150.44,150.41,7.6094]
[1751266428351,3.1085476,150.44,150.42,3.23486925]
[1751266428545,3.1085476,150.44,150.41,7.6094]
[1751266428751,3.1085476,150.44,150.42,3.23488123]
[1751266428949,3.1085476,150.44,150.41,7.6094]
[1751266429145,3.1085476,150.44,150.42,3.23488123]
[1751266429359,8.4249476,150.44,150.41,2.292]
[1751266429554,3.1085476,150.44,150.42,3.23489227]
[1751266429752,3.1085476,150.43,150.39,45.24]
[1751266429955,3.1085476,150.43,150.4,3.23506061]
[1751266430154,2.3605,150.47,150.41,3.23506061]
[1751266430361,3.1085476,150.42,150.36,2.3094]
[1751266430561,5.3185,150.38,150.37,3.23495403]
[1751266430857,3.1085476,150.4,150.37,3.23495403]
[1751266431159,5.3182,150.39,150.36,2.3094]
[1751266434654,5.3182,150.39,150.35,648.3994]
[1751266434655,3.1085476,150.4,150.35,643.08]
[1751266434852,3.1085476,150.4,150.35,45.24]
[1751266435053,3.1085476,150.38,150.35,45.24]
[1751266435655,5.3191,150.37,150.35,45.24]
[1751266436161,5.3192,150.36,150.35,45.24]
[1751266437260,5.3189,150.37,150.35,45.24]
[1751266438160,8.4271476,150.38,150.35,45.24]
[1751266438351,3.1085476,150.38,150.35,45.24]
[1751266438960,3.1085476,150.38,150.31,2.1819]
[1751266438961,3.1085476,150.38,150.32,5.3205]
[1751266439365,3.1085476,150.36,150.31,2.1819]
[1751266439758,3.1085476,150.34,150.29,45.26]
[1751266439961,5.3206,150.32,150.29,45.26]
[1751266440770,5.3204,150.33,150.29,50.5814]
[1751266442462,5.32,150.34,150.3,5.3213]
[1751266442665,5.32,150.34,150.29,45.26]
[1751266442666,3.1085476,150.37,150.29,45.26]
[1751266442864,3.1085476,150.33,150.29,45.26]
[1751266443370,3.1085476,150.31,150.29,45.26]
[1751266443671,5.3213,150.3,150.29,45.26]
[1751266444167,3.1085476,150.31,150.27,2.1662]
[1751266444168,5.3219,150.29,150.27,2.1662]
[1751266444359,3.1085476,150.29,150.27,2.1662]
[1751266444560,3.1085476,150.29,150.25,47.6235]
[1751266444969,3.1085476,150.31,150.25,47.6235]
[1751266445169,3.1085476,150.32,150.25,47.6235]
[1751266445370,5.3204,150.33,150.3,5.3213]
[1751266445575,5.3204,150.33,150.26,3.1085476]
[1751266445872,5.3204,150.33,150.29,5.3214]
[1751266446073,5.3204,150.33,150.26,3.1085476]
[1751266446477,5.3204,150.33,150.29,5.3215]
[1751266446972,5.3204,150.33,150.3,5.3213]
[1751266447373,5.3204,150.33,150.25,47.6235]
[1751266447575,3.1085476,150.32,150.25,47.6235]
[1751266447970,5.3216,150.3,150.26,5.3225]
[1751266448170,3.1085476,150.3,150.25,47.6235]
[1751266449176,3.1085476,150.32,150.25,47.6235]
[1751266450478,5.3212,150.31,150.27,5.3221]
[1751266450675,3.1085476,150.32,150.25,47.6235]
[1751266450979,8.4292476,150.32,150.25,47.6235]
[1751266451279,3.1085476,150.32,150.25,47.6235]
[1751266451577,5.321,150.31,150.25,47.6235]
[1751266451877,5.321,150.31,150.27,5.3221]
[1751266452076,5.3214,150.3,150.27,5.3221]
[1751266452271,45.28,150.36,150.27,5.3221]
[1751266452472,3.1085476,150.32,150.27,5.3221]
[1751266452675,5.3211,150.31,150.27,5.3221]
[1751266452876,5.3211,150.31,150.28,5.322]
[1751266453072,5.3211,150.31,150.25,47.6235]
[1751266453385,45.28,150.36,150.25,47.6235]
[1751266453386,3.1085476,150.3,150.25,47.6235]
[1751266453577,3.1085476,150.28,150.25,45.28]
[1751266454378,3.1085476,150.3,150.25,45.28]
[1751266455077,8.4300476,150.3,150.27,5.3223]
[1751266455383,3.1085476,150.32,150.25,48.3885476]
[1751266455679,5.3212,150.31,150.27,5.3222]
[1751266456483,3.1085476,150.32,150.26,5.3227]
[1751266456689,3.1085476,150.32,150.25,45.28]
[1751266457585,5.3215,150.3,150.27,5.3223]
[1751266458483,5.3215,150.3,150.26,5.3226]
[1751266458689,5.3218,150.29,150.26,5.3226]
[1751266460285,5.322,150.28,150.25,50.6029]
[1751266460487,3.1085476,150.3,150.25,45.28]
[1751266460887,5.3223,150.28,150.25,50.6031]
[1751266461083,5.3223,150.28,150.25,45.28]
[1751266461792,3.1085476,150.29,150.25,45.28]
[1751266462482,3.1085476,150.31,150.26,5.3225]
[1751266462888,5.3217,150.29,150.26,5.3225]
[1751266463392,3.1085476,150.31,150.27,5.3223]
[1751266463597,3.1085476,150.31,150.25,45.28]
[1751266464302,45.28,150.36,150.26,5.56232302]
[1751266464501,3.1085476,150.33,150.25,45.28]
[1751266464801,48.3885476,150.36,150.28,3.1085476]
[1751266464992,48.3885476,150.36,150.29,6.9107]
[1751266465195,5.3201,150.34,150.3,5.3212]
[1751266465798,5.3201,150.34,150.31,5.321]
[1751266466090,45.28,150.36,150.29,6.9107]
[1751266466091,48.3885476,150.36,150.29,6.9107]
[1751266466293,3.1085476,150.36,150.29,6.9107]
[1751266466501,3.1085476,150.36,150.3,5.3212]
[1751266466801,1.7401,150.39,150.3,5.3212]
[1751266467002,3.1085476,150.35,150.3,5.3212]
[1751266467395,5.32,150.34,150.3,5.3212]
[1751266467598,5.32,150.34,150.31,5.3209]
[1751266467905,3.1085476,150.35,150.31,5.3209]
[1751266468405,8.4283476,150.35,150.31,5.3209]
[1751266468602,5.3198,150.35,150.32,5.3206]
[1751266468903,44.1,150.4,150.3,44.1]
[1751266469106,44.1,150.48,150.38,5.3182]
[1751266469407,5.3172,150.42,150.37,47.2085476]
[1751266469704,3.1085476,150.42,150.37,44.1]
[1751266470206,5.3175,150.41,150.37,44.1]
[1751266473408,5.3175,150.41,150.37,49.4188]
[1751266475107,5.3175,150.41,150.37,44.1]
[1751266475905,3.1085476,150.39,150.36,2.188]
[1751266476111,43.96,150.43,150.32,43.96]
[1751266476311,3.1085476,150.37,150.32,43.96]
[1751266476607,3.1085476,150.37,150.32,49.2805]
[1751266476809,3.1085476,150.36,150.32,43.96]
[1751266477509,5.3198,150.35,150.32,43.96]
[1751266477704,3.1085476,150.36,150.32,43.96]
[1751266478106,5.3201,150.34,150.32,43.96]
[1751266478312,8.4286476,150.34,150.32,43.96]
[1751266478512,3.1085476,150.34,150.32,43.96]
[1751266478708,3.1085476,150.34,150.31,2.3374]
[1751266479515,5.3205,150.33,150.31,2.3374]
[1751266480214,43.96,150.42,150.31,2.3374]
[1751266480419,3.1085476,150.4,150.32,2.2028]
[1751266480611,3.1085476,150.39,150.32,2.2028]
[1751266481714,5.3188,150.38,150.34,5.3199]
[1751266484219,8.4267476,150.39,150.35,5.3194]
[1751266485119,5.3186,150.38,150.34,5.3198]
[1751266486215,5.3188,150.37,150.34,5.3198]
[1751266487023,5.3188,150.37,150.33,5.3201]
[1751266487321,3.1085476,150.37,150.32,2.2028]
[1751266487522,3.1085476,150.35,150.31,2.3374]
[1751266487922,3.1085476,150.35,150.28,43.96]
[1751266487923,3.1085476,150.33,150.28,43.96]
[1751266488122,3.1085476,150.33,150.28,49.2818]
[1751266488520,3.1085476,150.35,150.28,43.96]
[1751266488722,3.1085476,150.36,150.3,5.3211]
[1751266489221,5.32,150.34,150.3,5.3211]
[1751266489520,5.32,150.34,150.28,43.96]
[1751266489521,5.32,150.34,150.31,5.3209]
[1751266491123,5.32,150.34,150.3,5.3212]
[1751266492020,5.32,150.34,150.31,5.3209]
[1751266492214,43.96,150.37,150.28,43.96]
[1751266492215,43.96,150.37,150.29,3.1085476]
[1751266492524,3.1085476,150.36,150.29,3.1085476]
[1751266492819,3.1085476,150.36,150.3,2.347]
[1751266493321,3.1085476,150.37,150.31,2.3062]
[1751266493512,5.3192,150.36,150.33,5.3202]
[1751266494016,5.3198,150.35,150.32,7.6281]
[1751266494215,5.3198,150.35,150.32,2.3076]
[1751266495423,5.3198,150.35,150.32,7.6282]
[1751266495925,5.3193,150.36,150.32,7.6282]
[1751266497325,5.3196,150.35,150.32,7.6282]
[1751266499123,5.3193,150.36,150.33,5.3202]
[1751266499927,5.3193,150.36,150.32,7.6281]
[1751266500326,5.3196,150.35,150.32,7.6281]
[1751266502329,47.0685476,150.4,150.32,2.3076]
[1751266502531,3.1085476,150.36,150.32,2.3076]
[1751266503433,5.3201,150.34,150.32,2.3076]
[1751266504117,3.1085476,150.34,150.28,43.96]
[1751266504319,3.1085476,150.32,150.28,43.96]
[1751266504533,8.4292476,150.32,150.28,49.2817]
[1751266504730,8.4292476,150.32,150.28,43.96]
[1751266505224,5.3203,150.33,150.28,43.96]
[1751266506530,5.3206,150.32,150.28,43.96]
[1751266506924,3.1085476,150.34,150.28,43.96]
[1751266507228,47.0685476,150.4,150.28,43.96]
[1751266507229,3.1085476,150.36,150.28,43.96]
[1751266507420,3.1085476,150.34,150.28,43.96]
[1751266507625,3.1085476,150.32,150.28,43.96]
[1751266508027,3.1085476,150.3,150.25,6.8887]
[1751266508229,5.3219,150.29,150.26,5.3225]
[1751266509128,5.3219,150.29,150.25,6.8887]
[1751266509129,43.9,150.35,150.25,9.9972476]
[1751266509527,3.1085476,150.34,150.27,3.1085476]
[1751266509726,43.9,150.35,150.29,3.1085476]
[1751266509922,3.1085476,150.36,150.29,47.0085476]
[1751266510123,8.4278476,150.36,150.29,47.0085476]
[1751266510324,43.9,150.39,150.31,3.1085476]
[1751266510526,6.09882549,150.43,150.32,2.2799]
[1751266510724,43.9,150.42,150.33,3.1085476]
[1751266511032,5.318,150.4,150.33,3.1085476]
[1751266511230,5.318,150.4,150.36,5.3189]
[1751266511431,3.1085476,150.41,150.34,43.9]
[1751266511834,46.2151,150.44,150.35,3.1085476]
[1751266512035,3.1085476,150.42,150.35,3.1085476]
[1751266512327,8.4259476,150.42,150.38,5.3183]
[1751266512531,47.0085476,150.44,150.38,5.3183]
[1751266512726,3.1085476,150.42,150.35,3.1085476]
[1751266513229,3.1085476,150.4,150.34,43.9]
[1751266513728,5.3184,150.39,150.35,5.3192]
[1751266514133,5.3184,150.39,150.34,43.9]
[1751266514634,5.3179,150.4,150.36,5.3192]
[1751266514834,3.1085476,150.43,150.35,3.1085476]
[1751266515128,3.1085476,150.44,150.35,3.1085476]
[1751266515322,4.8451476,150.48,150.37,3.1085476]
[1751266515523,4.8451476,150.48,150.34,43.9]
[1751266515524,45.6366,150.48,150.39,3.1085476]
[1751266515728,43.9,150.48,150.39,47.0085476]
[1751266515924,46.2592,150.51,150.41,3.1085476]
[1751266516133,3.1085476,150.5,150.41,3.1085476]
[1751266516330,5.3161,150.45,150.41,5.3172]
[1751266516530,5.3161,150.45,150.4,7.6472476]
[1751266516725,3.1085476,150.46,150.4,4.5387]
[1751266516930,5.3165,150.44,150.4,4.5387]
[1751266517732,5.3168,150.43,150.4,4.5387]
[1751266518436,46.2592,150.51,150.4,4.5387]
[1751266518630,3.1085476,150.46,150.4,4.5387]
[1751266519228,3.1085476,150.46,150.4,7.6472476]
[1751266519429,3.1085476,150.48,150.4,7.6472476]
[1751266519630,3.1085476,150.48,150.42,3.1085476]
[1751266519830,47.0085476,150.51,150.42,3.1085476]
[1751266520032,5.315,150.48,150.44,5.3161]
[1751266520232,47.0085476,150.51,150.44,43.88]
[1751266520435,3.1085476,150.51,150.45,5.4600476]
[1751266520629,5.3135,150.52,150.48,5.3149]
[1751266521539,5.314,150.51,150.47,5.3152]
[1751266522335,5.314,150.51,150.48,5.3149]
[1751266522637,5.3136,150.52,150.48,5.3149]
[1751266522943,3.1085476,150.54,150.47,3.1085476]
[1751266523146,5.3141,150.51,150.46,4.5907]
[1751266523330,3.1085476,150.52,150.46,4.5907]
[1751266523733,3.1085476,150.52,150.46,7.6992476]
[1751266523937,3.1085476,150.54,150.46,7.6992476]
[1751266524339,3.1085476,150.54,150.47,3.1085476]
[1751266525135,5.3135,150.53,150.49,5.3143]
[1751266526236,43.86,150.61,150.49,43.86]
[1751266526440,3.1085476,150.57,150.49,46.9685476]
[1751266527143,3.1085476,150.57,150.52,5.3135]
[1751266527144,5.3124,150.56,150.52,5.3135]
[1751266527838,3.1085476,150.55,150.49,43.86]
[1751266528148,3.1085476,150.51,150.46,4.5907]
[1751266528342,8.4227476,150.51,150.47,5.3153]
[1751266528644,3.1085476,150.51,150.47,5.3153]
[1751266529238,3.1085476,150.52,150.48,5.3149]
[1751266529543,3.1085476,150.53,150.48,5.3149]
[1751266529844,4.66141019,150.54,150.48,5.3149]
[1751266530045,5.3136,150.52,150.48,5.3149]
[1751266531045,5.3133,150.53,150.49,5.3145]
[1751266531745,5.3135,150.52,150.48,5.3149]
[1751266532250,4.66141019,150.55,150.46,4.5907]
[1751266532439,4.66141019,150.55,150.47,4.66141019]
[1751266532745,5.3131,150.54,150.5,5.314]
[1751266532946,4.66141019,150.55,150.47,4.66141019]
[1751266533239,5.3127,150.55,150.51,5.3139]
[1751266533442,43.86,150.56,150.47,4.66141019]
[1751266533647,4.66141019,150.57,150.49,4.66141019]
[1751266533842,5.3124,150.56,150.52,5.3133]
[1751266534355,5.3124,150.56,150.51,2.3545]
[1751266534645,4.66141019,150.59,150.51,2.3545]
[1751266535040,4.66141019,150.59,150.54,5.3128]
[1751266535244,4.66141019,150.61,150.53,4.66141019]
[1751266535443,43.84,150.63,150.53,4.66141019]
[1751266535748,43.84,150.63,150.55,4.66141019]
[1751266535934,43.84,150.63,150.55,48.50141019]
[1751266536135,5.3101,150.62,150.58,5.3114]
[1751266536338,4.66141019,150.64,150.55,48.50141019]
[1751266536635,5.3089,150.66,150.59,4.66141019]
[1751266536837,4.66141019,150.67,150.6,45.8795]
[1751266537042,43.66,150.7,150.6,50.5652]
[1751266537435,4.66141019,150.67,150.6,50.5652]
[1751266537743,5.3086,150.66,150.62,5.3098]
[1751266538146,4.66141019,150.68,150.6,50.5652]
[1751266538348,4.66141019,150.66,150.6,50.5652]
[1751266538944,4.66141019,150.66,150.6,48.2171]
[1751266539451,4.66141019,150.66,150.6,53.5275]
[1751266539844,5.3095,150.64,150.6,53.5275]
[1751266540039,4.66141019,150.66,150.6,48.2171]
[1751266540247,4.66141019,150.64,150.6,43.66]
[1751266540446,5.3097,150.63,150.6,43.66]
[1751266541653,5.3094,150.64,150.6,43.66]
[1751266541951,43.66,150.7,150.6,43.66]
[1751266542151,4.66141019,150.67,150.6,48.9706]
[1751266542352,5.3093,150.65,150.6,43.66]
[1751266542553,4.66141019,150.67,150.6,48.9705]
[1751266542752,4.66141019,150.66,150.6,48.9705]
[1751266542949,43.64,150.69,150.6,43.66]
[1751266543151,4.66141019,150.69,150.6,43.66]
[1751266543451,641.54,150.73,150.6,43.66]
[1751266543452,4.66141019,150.67,150.6,43.66]
[1751266543653,4.66141019,150.67,150.6,48.9706]
[1751266543851,5.3094,150.64,150.6,48.9706]
[1751266545057,4.66141019,150.65,150.6,43.66]
[1751266545255,4.66141019,150.63,150.57,2.1779]
[1751266545451,4.66141019,150.63,150.57,7.4894]
[1751266545452,5.3105,150.61,150.57,7.4894]
[1751266545655,5.3105,150.61,150.57,2.1779]
[1751266546251,5.3107,150.6,150.57,7.4896]
[1751266546654,5.3107,150.6,150.57,2.1779]
[1751266547257,4.66141019,150.63,150.57,2.1779]
[1751266547659,5.311,150.6,150.57,2.1779]
[1751266547859,4.66141019,150.63,150.57,2.1779]
[1751266548363,5.3111,150.59,150.57,2.1779]
[1751266548755,5.3111,150.59,150.55,5.3123]
[1751266549053,5.3114,150.58,150.55,5.3123]
[1751266549359,4.66141019,150.61,150.55,5.3123]
[1751266550560,5.3113,150.59,150.55,5.3123]
[1751266551166,5.3116,150.58,150.54,48.9527]
[1751266551358,5.3116,150.58,150.54,43.64]
[1751266552058,5.3118,150.57,150.54,48.9528]
[1751266552663,45.369,150.66,150.55,5.3125]
[1751266552860,4.66141019,150.61,150.55,5.3125]
[1751266553468,4.66141019,150.61,150.54,43.64]
[1751266553666,4.66141019,150.59,150.54,43.64]
[1751266554166,4.66141019,150.59,150.54,48.9528]
[1751266554167,5.3117,150.58,150.54,48.9528]
[1751266554563,5.3118,150.57,150.54,48.9528]
[1751266555363,5.3115,150.58,150.54,48.9528]
[1751266557975,5.3111,150.59,150.55,5.3125]
[1751266559477,3.10494656,150.58,150.54,43.64]
[1751266560278,5.3121,150.57,150.54,43.64]
[1751266561980,5.3121,150.56,150.54,43.64]
[1751266562575,3.10658285,150.56,150.52,2.1586]
[1751266562772,3.10658285,150.58,150.52,2.1586]
[1751266563176,3.10658285,150.58,150.53,5.3132]
[1751266563681,3.10658285,150.58,150.54,5.3126]
[1751266563882,3.10658285,150.6,150.52,5.26518285]
[1751266564277,5.3113,150.59,150.55,5.3123]
[1751266564671,5.3113,150.59,150.56,5.3121]
[1751266564873,8.41738285,150.6,150.54,3.10658285]
[1751266565382,8.41738285,150.6,150.56,5.3119]
[1751266565686,5.3112,150.59,150.56,5.3119]
[1751266566984,43.64,150.62,150.54,3.10658285]
[1751266567486,5.3107,150.6,150.57,5.3117]
[1751266568180,5.3105,150.61,150.57,5.3117]
[1751266568588,48.9502,150.62,150.58,5.3114]
[1751266569193,5.3097,150.63,150.59,5.3108]
[1751266569486,3.10658285,150.65,150.59,5.3108]
[1751266569786,5.31,150.63,150.59,5.3108]
[1751266570187,3.10658285,150.65,150.59,5.3108]
[1751266570582,5.31,150.62,150.58,7.6134]
[1751266570886,5.31,150.62,150.58,2.3021]
[1751266571282,5.31,150.62,150.58,7.6134]
[1751266572087,8.41313028,150.63,150.59,5.311]
[1751266572383,3.10333028,150.65,150.58,2.3021]
[1751266572589,3.10333028,150.65,150.58,5.40543028]
[1751266573088,3.10333028,150.65,150.59,43.36]
[1751266573492,8.41253028,150.65,150.61,5.3101]
[1751266573692,3.10333028,150.65,150.61,5.3101]
[1751266574389,8.41233028,150.65,150.61,5.3101]
[1751266575085,5.309,150.65,150.61,5.3101]
[1751266576292,5.3094,150.64,150.6,5.3106]
[1751266576493,5.3094,150.64,150.59,43.36]
[1751266577588,5.3094,150.64,150.61,5.3103]
[1751266577995,5.3094,150.64,150.59,43.36]
[1751266578296,5.3094,150.64,150.6,5.3105]
[1751266578996,5.3097,150.63,150.6,5.3105]
[1751266579195,3.10333028,150.64,150.59,43.36]
[1751266579598,5.3094,150.64,150.59,46.46333028]
[1751266580294,5.3097,150.63,150.6,5.3106]
[1751266580484,5.3097,150.63,150.59,43.36]
[1751266580686,3.10333028,150.64,150.59,43.36]
[1751266581295,5.31,150.62,150.59,43.34]
[1751266581496,3.10333028,150.64,150.59,43.34]
[1751266581897,5.3107,150.61,150.59,43.34]
[1751266584295,5.3107,150.6,150.59,43.34]
[1751266584999,5.3105,150.61,150.59,43.34]
[1751266585900,5.3101,150.62,150.59,43.34]
[1751266586097,3.10333028,150.64,150.59,43.34]
[1751266586500,5.3095,150.64,150.6,5.3106]
[1751266586803,3.10333028,150.66,150.6,5.3106]
[1751266587599,5.3096,150.64,150.6,5.3106]
[1751266588098,5.3096,150.64,150.61,5.3102]
[1751266588304,5.3091,150.65,150.61,5.3102]
[1751266588804,5.3087,150.66,150.62,5.3098]
[1751266589010,3.10333028,150.68,150.59,43.34]
[1751266589197,3.10333028,150.66,150.59,46.44333028]
[1751266589503,3.10333028,150.66,150.61,5.31]
[1751266589504,5.3091,150.65,150.61,5.31]
[1751266590208,3.10333028,150.64,150.59,43.34]
[1751266590503,3.10333028,150.62,150.59,43.34]
[1751266590698,8.41363028,150.62,150.59,43.34]
[1751266591706,5.3103,150.62,150.59,43.34]
[1751266591905,5.3103,150.62,150.59,48.651]
[1751266592307,5.3104,150.61,150.59,43.34]
[1751266593698,5.3102,150.62,150.59,43.34]